[Event "Titled Tuesday Blitz March 07 Late 2023"]
[White "Gascon Del Nogal, Jose Rafael"]
[Black "Nunez V, Gustavo Eduardo"]
[WhiteFideId "3902463"]
[BlackFideId "4403690"]
[WhiteElo "2473"]
[BlackElo "2228"]
[Result "0-1"]
[Round "09"]
[TimeControl "180+2"]
[Date "2023.03.07"]
[WhiteClock "0:00:01"]
[BlackClock "0:00:39"]

1. Nf3 {[%clk 0:03:00]}  g6 {[%clk 0:02:57]} 2. c4 {[%clk 0:02:55]}  Bg7 {[%clk 0:02:56]} 3. g3 {[%clk 0:02:55]}  e5 {[%clk 0:02:55]} 4. Nc3 {[%clk 0:02:55]}  Ne7 {[%clk 0:02:55]} 5. d3 {[%clk 0:02:50]}  c5 {[%clk 0:02:55]} 6. Bg2 {[%clk 0:02:48]}  O-O {[%clk 0:02:55]} 7. O-O {[%clk 0:02:49]}  d6 {[%clk 0:02:55]} 8. Nd2 {[%clk 0:02:45]}  Nbc6 {[%clk 0:02:55]} 9. b3 {[%clk 0:02:45]}  e4 {[%clk 0:02:51]} 10. Bb2 {[%clk 0:02:41]}  exd3 {[%clk 0:02:50]} 11. exd3 {[%clk 0:02:41]}  Nf5 {[%clk 0:02:48]} 12. Rb1 {[%clk 0:02:34]}  Nfd4 {[%clk 0:02:48]} 13. Nd5 {[%clk 0:02:31]}  Re8 {[%clk 0:02:45]} 14. Re1 {[%clk 0:02:28]}  Be6 {[%clk 0:02:44]} 15. a3 {[%clk 0:02:17]}  Qd7 {[%clk 0:02:39]} 16. Ne4 {[%clk 0:01:45]}  Bxd5 {[%clk 0:02:35]} 17. cxd5 {[%clk 0:01:45]}  Ne7 {[%clk 0:02:32]} 18. b4 {[%clk 0:01:44]}  b6 {[%clk 0:02:27]} 19. Nd2 {[%clk 0:01:31]}  Nef5 {[%clk 0:02:20]} 20. Rxe8+ {[%clk 0:01:19]}  Rxe8 {[%clk 0:01:28]} 21. Be4 {[%clk 0:01:15]}  h5 {[%clk 0:01:24]} 22. Kg2 {[%clk 0:00:57]}  Nh6 {[%clk 0:01:19]} 23. Nb3 {[%clk 0:00:51]}  Nxb3 {[%clk 0:01:16]} 24. Bxg7 {[%clk 0:00:50]}  Kxg7 {[%clk 0:01:16]} 25. Qxb3 {[%clk 0:00:49]}  f5 {[%clk 0:01:17]} 26. Bf3 {[%clk 0:00:48]}  Qe7 {[%clk 0:01:14]} 27. bxc5 {[%clk 0:00:48]}  dxc5 {[%clk 0:01:09]} 28. a4 {[%clk 0:00:47]}  Ng4 {[%clk 0:01:07]} 29. a5 {[%clk 0:00:45]}  Rb8 {[%clk 0:01:06]} 30. axb6 {[%clk 0:00:42]}  Rxb6 {[%clk 0:01:07]} 31. Qc3+ {[%clk 0:00:35]}  Qf6 {[%clk 0:01:07]} 32. Rc1 {[%clk 0:00:35]}  Qxc3 {[%clk 0:01:04]} 33. Rxc3 {[%clk 0:00:36]}  Ne5 {[%clk 0:01:05]} 34. Rxc5 {[%clk 0:00:34]}  Nxd3 {[%clk 0:01:05]} 35. Rc7+ {[%clk 0:00:31]}  Kf6 {[%clk 0:01:03]} 36. Rxa7 {[%clk 0:00:15]}  Rb2 {[%clk 0:01:02]} 37. Ra6+ {[%clk 0:00:15]}  Kg7 {[%clk 0:01:00]} 38. Kg1 {[%clk 0:00:09]}  Rb1+ {[%clk 0:00:56]} 39. Kg2 {[%clk 0:00:07]}  Ne1+ {[%clk 0:00:57]} 40. Kh3 {[%clk 0:00:04]}  Nxf3 {[%clk 0:00:57]} 41. d6 {[%clk 0:00:03]}  g5 {[%clk 0:00:43]} 42. Ra7+ {[%clk 0:00:01]}  Kf6 {[%clk 0:00:39]} 0-1


[Site "https://www.chess.com"]

[Event "Titled Tuesday Blitz March 07 Late 2023"]
[White "Derige Kane, Yan"]
[Black "Melikhov, Evgeny V."]
[WhiteFideId "20665431"]
[BlackFideId "4122046"]
[WhiteElo "2149"]
[BlackElo "2158"]
[Result "1-0"]
[Round "09"]
[TimeControl "180+2"]
[Date "2023.03.07"]
[WhiteClock "0:01:33"]
[BlackClock "0:00:12"]

1. d4 {[%clk 0:02:55]}  Nf6 {[%clk 0:02:59]} 2. c4 {[%clk 0:02:55]}  e6 {[%clk 0:02:59]} 3. Nf3 {[%clk 0:02:56]}  d5 {[%clk 0:02:58]} 4. Nc3 {[%clk 0:02:56]}  Bb4 {[%clk 0:02:58]} 5. Qa4+ {[%clk 0:02:43]}  Nc6 {[%clk 0:02:57]} 6. Bg5 {[%clk 0:02:37]}  h6 {[%clk 0:02:57]} 7. Bxf6 {[%clk 0:02:37]}  Qxf6 {[%clk 0:02:57]} 8. e3 {[%clk 0:02:36]}  O-O {[%clk 0:02:54]} 9. Be2 {[%clk 0:02:36]}  dxc4 {[%clk 0:02:51]} 10. Bxc4 {[%clk 0:02:37]}  a6 {[%clk 0:02:46]} 11. Qc2 {[%clk 0:02:36]}  e5 {[%clk 0:02:33]} 12. O-O {[%clk 0:02:32]}  Bd6 {[%clk 0:02:15]} 13. Nd5 {[%clk 0:02:13]}  Qd8 {[%clk 0:02:00]} 14. Rfd1 {[%clk 0:02:13]}  exd4 {[%clk 0:01:59]} 15. Nxd4 {[%clk 0:02:12]}  Nxd4 {[%clk 0:01:58]} 16. Rxd4 {[%clk 0:02:12]}  Be6 {[%clk 0:01:51]} 17. Rad1 {[%clk 0:02:09]}  Bxd5 {[%clk 0:01:47]} 18. Bxd5 {[%clk 0:02:02]}  Rb8 {[%clk 0:01:39]} 19. Rg4 {[%clk 0:01:50]}  Qe7 {[%clk 0:01:34]} 20. Qg6 {[%clk 0:01:35]}  Qe5 {[%clk 0:01:21]} 21. f4 {[%clk 0:01:35]}  Qxb2 {[%clk 0:01:00]} 22. Rd4 {[%clk 0:01:35]}  Qb1+ {[%clk 0:00:12]} 23. Qxb1 {[%clk 0:01:33]} 1-0


[Site "https://www.chess.com"]

[Event "Titled Tuesday Blitz March 07 Late 2023"]
[White "Harsh Suresh"]
[Black "Vovk, Orest"]
[WhiteFideId "45018464"]
[BlackFideId "14113490"]
[WhiteElo "2227"]
[BlackElo "2215"]
[Result "1-0"]
[Round "09"]
[TimeControl "180+2"]
[Date "2023.03.07"]
[WhiteClock "0:01:51"]
[BlackClock "0:01:43"]

1. e4 {[%clk 0:03:00]}  g5 {[%clk 0:02:57]} 2. d4 {[%clk 0:02:58]}  g4 {[%clk 0:02:57]} 3. Be3 {[%clk 0:02:54]}  d5 {[%clk 0:02:56]} 4. exd5 {[%clk 0:02:53]}  Qxd5 {[%clk 0:02:56]} 5. c4 {[%clk 0:02:53]}  Qa5+ {[%clk 0:02:54]} 6. Nc3 {[%clk 0:02:53]}  c5 {[%clk 0:02:47]} 7. dxc5 {[%clk 0:02:48]}  Bg7 {[%clk 0:02:46]} 8. Rc1 {[%clk 0:02:41]}  Nc6 {[%clk 0:02:43]} 9. Bd3 {[%clk 0:02:40]}  Be6 {[%clk 0:02:36]} 10. Ne2 {[%clk 0:02:38]}  O-O-O {[%clk 0:02:36]} 11. O-O {[%clk 0:02:18]}  Nb4 {[%clk 0:02:29]} 12. Nd5 {[%clk 0:02:18]}  Bxd5 {[%clk 0:02:21]} 13. cxd5 {[%clk 0:02:17]}  Rxd5 {[%clk 0:02:20]} 14. Nf4 {[%clk 0:02:17]}  Rd8 {[%clk 0:01:57]} 15. Qxg4+ {[%clk 0:02:17]}  e6 {[%clk 0:01:54]} 16. Qxg7 {[%clk 0:02:16]}  Nxd3 {[%clk 0:01:53]} 17. Nxd3 {[%clk 0:02:13]}  Ne7 {[%clk 0:01:53]} 18. Qxf7 {[%clk 0:02:11]}  Nd5 {[%clk 0:01:51]} 19. c6 {[%clk 0:02:07]}  bxc6 {[%clk 0:01:48]} 20. Qxe6+ {[%clk 0:01:51]}  Kb8 {[%clk 0:01:43]} 21. Ne5 {[%clk 0:01:51]} 1-0


[Site "https://www.chess.com"]

[Event "Titled Tuesday Blitz March 07 Late 2023"]
[White "Przybylski, Wojciech"]
[Black "Do Valle Cardoso, Lucas"]
[WhiteFideId "1117599"]
[BlackFideId "2163144"]
[WhiteElo "2222"]
[BlackElo "2383"]
[Result "0-1"]
[Round "09"]
[TimeControl "180+2"]
[Date "2023.03.07"]
[WhiteClock "0:00:03"]
[BlackClock "0:00:25"]

1. d4 {[%clk 0:02:44]}  d5 {[%clk 0:02:58]} 2. c4 {[%clk 0:02:42]}  dxc4 {[%clk 0:02:59]} 3. e4 {[%clk 0:02:41]}  e5 {[%clk 0:02:56]} 4. Nf3 {[%clk 0:02:40]}  exd4 {[%clk 0:02:50]} 5. Bxc4 {[%clk 0:02:39]}  Nc6 {[%clk 0:02:49]} 6. O-O {[%clk 0:02:38]}  Be6 {[%clk 0:02:48]} 7. Bxe6 {[%clk 0:02:36]}  fxe6 {[%clk 0:02:49]} 8. Qb3 {[%clk 0:02:36]}  Qd7 {[%clk 0:02:48]} 9. Qxb7 {[%clk 0:02:33]}  Rb8 {[%clk 0:02:37]} 10. Qa6 {[%clk 0:02:33]}  Nf6 {[%clk 0:02:37]} 11. e5 {[%clk 0:02:28]}  Nd5 {[%clk 0:02:31]} 12. Nbd2 {[%clk 0:02:24]}  Be7 {[%clk 0:02:14]} 13. a3 {[%clk 0:02:21]}  O-O {[%clk 0:02:08]} 14. Qe2 {[%clk 0:02:19]}  Nf4 {[%clk 0:01:58]} 15. Qe4 {[%clk 0:02:18]}  d3 {[%clk 0:01:57]} 16. Nc4 {[%clk 0:02:11]}  Qd5 {[%clk 0:01:48]} 17. Qxd5 {[%clk 0:01:41]}  exd5 {[%clk 0:01:38]} 18. Ncd2 {[%clk 0:01:34]}  Ne2+ {[%clk 0:01:35]} 19. Kh1 {[%clk 0:01:34]}  Rf5 {[%clk 0:01:21]} 20. g4 {[%clk 0:01:24]}  Rf4 {[%clk 0:01:15]} 21. h3 {[%clk 0:01:14]}  Rbf8 {[%clk 0:01:13]} 22. Kg2 {[%clk 0:01:13]}  h5 {[%clk 0:01:05]} 23. g5 {[%clk 0:01:00]}  R4f5 {[%clk 0:01:03]} 24. h4 {[%clk 0:00:29]}  Nxe5 {[%clk 0:00:59]} 25. Nxe5 {[%clk 0:00:28]}  Rxe5 {[%clk 0:01:00]} 26. Nf3 {[%clk 0:00:24]}  Ref5 {[%clk 0:01:00]} 27. Ng1 {[%clk 0:00:17]}  Bc5 {[%clk 0:00:54]} 28. Nh3 {[%clk 0:00:16]}  Bd4 {[%clk 0:00:47]} 29. Rb1 {[%clk 0:00:15]}  c5 {[%clk 0:00:47]} 30. Bd2 {[%clk 0:00:14]}  c4 {[%clk 0:00:47]} 31. Bb4 {[%clk 0:00:13]}  Rb8 {[%clk 0:00:46]} 32. Rfd1 {[%clk 0:00:12]}  Nf4+ {[%clk 0:00:42]} 33. Nxf4 {[%clk 0:00:11]}  Rxf4 {[%clk 0:00:43]} 34. Be1 {[%clk 0:00:10]}  Rxh4 {[%clk 0:00:41]} 35. f3 {[%clk 0:00:11]}  Rf4 {[%clk 0:00:40]} 36. Bg3 {[%clk 0:00:11]}  Be3 {[%clk 0:00:39]} 37. Bxf4 {[%clk 0:00:11]}  Bxf4 {[%clk 0:00:40]} 38. Re1 {[%clk 0:00:11]}  d2 {[%clk 0:00:37]} 39. Re7 {[%clk 0:00:09]}  c3 {[%clk 0:00:36]} 40. Rf1 {[%clk 0:00:05]}  c2 {[%clk 0:00:35]} 41. Ree1 {[%clk 0:00:04]}  Kh7 {[%clk 0:00:32]} 42. g6+ {[%clk 0:00:04]}  Kxg6 {[%clk 0:00:31]} 43. Re6+ {[%clk 0:00:03]}  Kh7 {[%clk 0:00:31]} 44. Rc6 {[%clk 0:00:04]}  Rxb2 {[%clk 0:00:30]} 45. Kh3 {[%clk 0:00:04]}  d1=Q {[%clk 0:00:26]} 46. Rf2 {[%clk 0:00:03]}  Qh1+ {[%clk 0:00:25]} 0-1


[Site "https://www.chess.com"]

[Event "Titled Tuesday Blitz March 07 Late 2023"]
[White "Sai Han Thiha"]
[Black "Brozyna, Mateusz"]
[WhiteFideId "13012290"]
[BlackFideId "21816140"]
[WhiteElo "1954"]
[BlackElo "2189"]
[Result "1-0"]
[Round "09"]
[TimeControl "180+2"]
[Date "2023.03.07"]
[WhiteClock "0:00:14"]
[BlackClock "0:00:05"]

1. d4 {[%clk 0:03:00]}  Nf6 {[%clk 0:02:59]} 2. c4 {[%clk 0:03:01]}  g6 {[%clk 0:02:59]} 3. Nc3 {[%clk 0:03:01]}  Bg7 {[%clk 0:02:59]} 4. e4 {[%clk 0:03:01]}  d6 {[%clk 0:03:00]} 5. Nf3 {[%clk 0:03:01]}  O-O {[%clk 0:03:00]} 6. Be2 {[%clk 0:03:02]}  e5 {[%clk 0:03:00]} 7. Be3 {[%clk 0:03:02]}  Nc6 {[%clk 0:02:58]} 8. d5 {[%clk 0:03:03]}  Ne7 {[%clk 0:02:57]} 9. Nd2 {[%clk 0:03:03]}  Nd7 {[%clk 0:02:50]} 10. f3 {[%clk 0:02:44]}  a5 {[%clk 0:02:49]} 11. a3 {[%clk 0:02:41]}  f5 {[%clk 0:02:46]} 12. b4 {[%clk 0:02:41]}  Kh8 {[%clk 0:02:32]} 13. c5 {[%clk 0:02:35]}  Ng8 {[%clk 0:02:28]} 14. Nc4 {[%clk 0:02:15]}  axb4 {[%clk 0:02:06]} 15. axb4 {[%clk 0:02:16]}  Rxa1 {[%clk 0:02:06]} 16. Qxa1 {[%clk 0:02:17]}  Ndf6 {[%clk 0:01:55]} 17. cxd6 {[%clk 0:01:54]}  cxd6 {[%clk 0:01:54]} 18. Qa5 {[%clk 0:01:55]}  Bh6 {[%clk 0:01:46]} 19. Qxd8 {[%clk 0:01:49]}  Rxd8 {[%clk 0:01:47]} 20. Bb6 {[%clk 0:01:50]}  Rd7 {[%clk 0:01:37]} 21. h3 {[%clk 0:01:35]}  Ne8 {[%clk 0:01:20]} 22. O-O {[%clk 0:01:10]}  Rf7 {[%clk 0:01:19]} 23. Ra1 {[%clk 0:01:09]}  Ngf6 {[%clk 0:01:00]} 24. Ra8 {[%clk 0:01:08]}  Bd7 {[%clk 0:00:33]} 25. Nxd6 {[%clk 0:01:08]}  Rf8 {[%clk 0:00:31]} 26. Nxb7 {[%clk 0:01:02]}  Bd2 {[%clk 0:00:26]} 27. Bc5 {[%clk 0:00:54]}  Rg8 {[%clk 0:00:18]} 28. Nb1 {[%clk 0:00:37]}  Bc1 {[%clk 0:00:11]} 29. Bd3 {[%clk 0:00:36]}  fxe4 {[%clk 0:00:11]} 30. fxe4 {[%clk 0:00:37]}  Nh5 {[%clk 0:00:10]} 31. Nc3 {[%clk 0:00:23]}  Nf4 {[%clk 0:00:09]} 32. Bf1 {[%clk 0:00:23]}  g5 {[%clk 0:00:04]} 33. Nd6 {[%clk 0:00:22]}  Nxd6 {[%clk 0:00:03]} 34. Rxg8+ {[%clk 0:00:21]}  Kxg8 {[%clk 0:00:04]} 35. Bxd6 {[%clk 0:00:22]}  Be3+ {[%clk 0:00:04]} 36. Kh2 {[%clk 0:00:21]}  Bd2 {[%clk 0:00:02]} 37. Ne2 {[%clk 0:00:18]}  Ng6 {[%clk 0:00:03]} 38. Ng1 {[%clk 0:00:16]}  Bf4+ {[%clk 0:00:02]} 39. g3 {[%clk 0:00:16]}  Be3 {[%clk 0:00:03]} 40. Nf3 {[%clk 0:00:16]}  g4 {[%clk 0:00:03]} 41. hxg4 {[%clk 0:00:16]}  Bxg4 {[%clk 0:00:04]} 42. Nxe5 {[%clk 0:00:17]}  Nxe5 {[%clk 0:00:05]} 43. Bxe5 {[%clk 0:00:18]}  Bf3 {[%clk 0:00:06]} 44. Bg2 {[%clk 0:00:17]}  Be2 {[%clk 0:00:05]} 45. d6 {[%clk 0:00:16]}  Kf7 {[%clk 0:00:06]} 46. Bh3 {[%clk 0:00:15]}  Bb6 {[%clk 0:00:02]} 47. Bf4 {[%clk 0:00:13]}  Bd8 {[%clk 0:00:03]} 48. e5 {[%clk 0:00:13]}  Bc4 {[%clk 0:00:03]} 49. Kg2 {[%clk 0:00:13]}  Be6 {[%clk 0:00:04]} 50. Bxe6+ {[%clk 0:00:12]}  Kxe6 {[%clk 0:00:05]} 51. Kf3 {[%clk 0:00:13]}  Kf5 {[%clk 0:00:05]} 52. g4+ {[%clk 0:00:13]}  Ke6 {[%clk 0:00:06]} 53. Ke4 {[%clk 0:00:13]}  Bb6 {[%clk 0:00:05]} 54. Be3 {[%clk 0:00:14]}  Bd8 {[%clk 0:00:05]} 55. b5 {[%clk 0:00:14]}  Be7 {[%clk 0:00:03]} 56. dxe7 {[%clk 0:00:14]}  Kxe7 {[%clk 0:00:03]} 57. b6 {[%clk 0:00:14]}  h6 {[%clk 0:00:04]} 58. b7 {[%clk 0:00:14]}  h5 {[%clk 0:00:05]} 1-0


[Site "https://www.chess.com"]

[Event "Titled Tuesday Blitz March 07 Late 2023"]
[White "Lewtak, Damian"]
[Black "Rangel, Daniel"]
[WhiteFideId "1141724"]
[BlackFideId "2124475"]
[WhiteElo "2302"]
[BlackElo "2256"]
[Result "1-0"]
[Round "09"]
[TimeControl "180+2"]
[Date "2023.03.07"]
[WhiteClock "0:00:53"]
[BlackClock "0:00:02"]

1. a3 {[%clk 0:02:56]}  Nf6 {[%clk 0:01:34]} 2. Nc3 {[%clk 0:02:55]}  g6 {[%clk 0:01:35]} 3. e4 {[%clk 0:02:56]}  d6 {[%clk 0:01:33]} 4. Nf3 {[%clk 0:02:55]}  c5 {[%clk 0:01:33]} 5. d4 {[%clk 0:02:55]}  cxd4 {[%clk 0:01:33]} 6. Bb5+ {[%clk 0:02:55]}  Bd7 {[%clk 0:01:33]} 7. Bxd7+ {[%clk 0:02:54]}  Nbxd7 {[%clk 0:01:34]} 8. Qxd4 {[%clk 0:02:54]}  Bg7 {[%clk 0:01:34]} 9. O-O {[%clk 0:02:54]}  O-O {[%clk 0:01:34]} 10. Re1 {[%clk 0:02:48]}  Rc8 {[%clk 0:01:34]} 11. Qxa7 {[%clk 0:02:40]}  Rxc3 {[%clk 0:01:33]} 12. bxc3 {[%clk 0:02:37]}  Nc5 {[%clk 0:01:33]} 13. e5 {[%clk 0:02:26]}  Nd5 {[%clk 0:01:22]} 14. c4 {[%clk 0:02:22]}  Nb6 {[%clk 0:01:17]} 15. Qa5 {[%clk 0:02:11]}  Nxc4 {[%clk 0:01:14]} 16. Qxd8 {[%clk 0:02:10]}  Rxd8 {[%clk 0:01:15]} 17. Bg5 {[%clk 0:02:04]}  Nxe5 {[%clk 0:01:05]} 18. Nxe5 {[%clk 0:01:56]}  Bxe5 {[%clk 0:01:06]} 19. Bxe7 {[%clk 0:01:56]}  Rd7 {[%clk 0:01:03]} 20. Rxe5 {[%clk 0:01:55]}  dxe5 {[%clk 0:00:51]} 21. Bxc5 {[%clk 0:01:55]}  Rc7 {[%clk 0:00:49]} 22. Be3 {[%clk 0:01:54]}  Rxc2 {[%clk 0:00:50]} 23. Kf1 {[%clk 0:01:52]}  Rc7 {[%clk 0:00:42]} 24. a4 {[%clk 0:01:52]}  f6 {[%clk 0:00:43]} 25. a5 {[%clk 0:01:52]}  Kf7 {[%clk 0:00:44]} 26. Bb6 {[%clk 0:01:52]}  Rd7 {[%clk 0:00:44]} 27. Rc1 {[%clk 0:01:51]}  Ke6 {[%clk 0:00:45]} 28. Ke2 {[%clk 0:01:52]}  h5 {[%clk 0:00:44]} 29. Ke3 {[%clk 0:01:51]}  g5 {[%clk 0:00:42]} 30. h3 {[%clk 0:01:50]}  f5 {[%clk 0:00:40]} 31. g4 {[%clk 0:01:49]}  fxg4 {[%clk 0:00:11]} 32. hxg4 {[%clk 0:01:50]}  h4 {[%clk 0:00:12]} 33. Kf3 {[%clk 0:01:45]}  Rf7+ {[%clk 0:00:11]} 34. Kg2 {[%clk 0:01:45]}  Rf4 {[%clk 0:00:11]} 35. Rc7 {[%clk 0:01:31]}  Rxg4+ {[%clk 0:00:10]} 36. Kh2 {[%clk 0:01:30]}  Ra4 {[%clk 0:00:08]} 37. Rxb7 {[%clk 0:01:30]}  Ra2 {[%clk 0:00:09]} 38. Rg7 {[%clk 0:01:26]}  Kf5 {[%clk 0:00:09]} 39. Be3 {[%clk 0:01:18]}  g4 {[%clk 0:00:09]} 40. Rg5+ {[%clk 0:01:17]}  Ke4 {[%clk 0:00:08]} 41. Rxg4+ {[%clk 0:01:18]}  Kf3 {[%clk 0:00:09]} 42. Rxh4 {[%clk 0:01:16]}  Rxa5 {[%clk 0:00:09]} 43. Rh3+ {[%clk 0:01:15]}  Ke4 {[%clk 0:00:09]} 44. Kg2 {[%clk 0:01:15]}  Ra6 {[%clk 0:00:09]} 45. Kf1 {[%clk 0:01:11]}  Ra1+ {[%clk 0:00:08]} 46. Ke2 {[%clk 0:01:11]}  Ra2+ {[%clk 0:00:09]} 47. Bd2 {[%clk 0:01:11]}  Ra6 {[%clk 0:00:09]} 48. Rh4+ {[%clk 0:01:11]}  Kd5 {[%clk 0:00:09]} 49. Rh5 {[%clk 0:00:58]}  Ra3 {[%clk 0:00:08]} 50. f4 {[%clk 0:00:58]}  Ra2 {[%clk 0:00:03]} 51. Rxe5+ {[%clk 0:00:57]}  Kd6 {[%clk 0:00:04]} 52. Re3 {[%clk 0:00:57]}  Kd5 {[%clk 0:00:04]} 53. f5 {[%clk 0:00:56]}  Ra6 {[%clk 0:00:02]} 54. Bc3 {[%clk 0:00:55]}  Rh6 {[%clk 0:00:02]} 55. f6 {[%clk 0:00:55]}  Rh5 {[%clk 0:00:03]} 56. f7 {[%clk 0:00:53]}  Rf5 {[%clk 0:00:03]} 57. Rf3 {[%clk 0:00:53]}  Rxf7 {[%clk 0:00:02]} 58. Rxf7 {[%clk 0:00:53]} 1-0


[Site "https://www.chess.com"]

[Event "Titled Tuesday Blitz March 07 Late 2023"]
[White "Hoffmann, Asa"]
[Black "Ismagilov, Damir"]
[WhiteFideId "2001470"]
[BlackFideId "34199982"]
[WhiteElo "2117"]
[BlackElo "2078"]
[Result "1-0"]
[Round "09"]
[TimeControl "180+2"]
[Date "2023.03.07"]
[WhiteClock "0:00:12"]
[BlackClock "0:00:05"]

1. d4 {[%clk 0:02:55]}  Nf6 {[%clk 0:02:59]} 2. Bg5 {[%clk 0:02:54]}  c5 {[%clk 0:02:59]} 3. d5 {[%clk 0:02:53]}  Ne4 {[%clk 0:02:50]} 4. Bc1 {[%clk 0:02:52]}  g6 {[%clk 0:02:48]} 5. f3 {[%clk 0:02:51]}  Nf6 {[%clk 0:02:45]} 6. e4 {[%clk 0:02:50]}  d6 {[%clk 0:02:46]} 7. Be3 {[%clk 0:02:48]}  Bg7 {[%clk 0:02:45]} 8. Qd2 {[%clk 0:02:48]}  Nbd7 {[%clk 0:02:30]} 9. Nc3 {[%clk 0:02:47]}  a6 {[%clk 0:02:27]} 10. a4 {[%clk 0:02:46]}  Ne5 {[%clk 0:02:19]} 11. h3 {[%clk 0:02:42]}  Nh5 {[%clk 0:02:04]} 12. Qf2 {[%clk 0:02:28]}  Qa5 {[%clk 0:01:24]} 13. Bd2 {[%clk 0:02:18]}  Qb6 {[%clk 0:01:17]} 14. Rb1 {[%clk 0:02:06]}  f5 {[%clk 0:00:57]} 15. g4 {[%clk 0:02:00]}  fxg4 {[%clk 0:00:45]} 16. hxg4 {[%clk 0:01:59]}  Nf6 {[%clk 0:00:45]} 17. g5 {[%clk 0:01:57]}  Nh5 {[%clk 0:00:43]} 18. f4 {[%clk 0:01:56]}  Rf8 {[%clk 0:00:37]} 19. Be2 {[%clk 0:01:46]}  Ng4 {[%clk 0:00:27]} 20. Qh4 {[%clk 0:01:39]}  Nxf4 {[%clk 0:00:27]} 21. Qxh7 {[%clk 0:01:32]}  Ng2+ {[%clk 0:00:25]} 22. Kd1 {[%clk 0:01:31]}  Nf2+ {[%clk 0:00:24]} 23. Kc1 {[%clk 0:01:30]}  Bxc3 {[%clk 0:00:24]} 24. Qxg6+ {[%clk 0:01:23]}  Kd7 {[%clk 0:00:25]} 25. bxc3 {[%clk 0:01:12]}  Qd8 {[%clk 0:00:25]} 26. Rh7 {[%clk 0:01:05]}  Qe8 {[%clk 0:00:20]} 27. Qe6+ {[%clk 0:01:02]}  Kd8 {[%clk 0:00:19]} 28. Qh6 {[%clk 0:01:00]}  Nxe4 {[%clk 0:00:18]} 29. Nf3 {[%clk 0:00:55]}  Nxd2 {[%clk 0:00:17]} 30. Kxd2 {[%clk 0:00:51]}  Nf4 {[%clk 0:00:16]} 31. Rh1 {[%clk 0:00:32]}  Nxe2 {[%clk 0:00:15]} 32. Qxf8 {[%clk 0:00:26]}  Qxf8 {[%clk 0:00:14]} 33. Rh8 {[%clk 0:00:26]}  Qxh8 {[%clk 0:00:11]} 34. Rxh8+ {[%clk 0:00:25]}  Kc7 {[%clk 0:00:11]} 35. Kxe2 {[%clk 0:00:25]}  b6 {[%clk 0:00:11]} 36. g6 {[%clk 0:00:24]}  a5 {[%clk 0:00:08]} 37. Ke3 {[%clk 0:00:22]}  Bb7 {[%clk 0:00:03]} 38. Rxa8 {[%clk 0:00:19]}  Bxa8 {[%clk 0:00:03]} 39. c4 {[%clk 0:00:19]}  e6 {[%clk 0:00:02]} 40. g7 {[%clk 0:00:18]}  exd5 {[%clk 0:00:02]} 41. g8=Q {[%clk 0:00:17]}  d4+ {[%clk 0:00:03]} 42. Kd2 {[%clk 0:00:17]}  Bxf3 {[%clk 0:00:03]} 43. Qf7+ {[%clk 0:00:16]}  Kb8 {[%clk 0:00:02]} 44. Qxf3 {[%clk 0:00:15]}  Ka7 {[%clk 0:00:03]} 45. Qc6 {[%clk 0:00:15]}  Ka6 {[%clk 0:00:04]} 46. Kd3 {[%clk 0:00:14]}  Ka7 {[%clk 0:00:04]} 47. Ke4 {[%clk 0:00:14]}  Kb8 {[%clk 0:00:04]} 48. Kd5 {[%clk 0:00:14]}  Ka7 {[%clk 0:00:05]} 49. Ke6 {[%clk 0:00:14]}  d3 {[%clk 0:00:05]} 50. cxd3 {[%clk 0:00:14]}  b5 {[%clk 0:00:05]} 51. Qxb5 {[%clk 0:00:12]}  Ka8 {[%clk 0:00:04]} 52. Kd7 {[%clk 0:00:12]}  Ka7 {[%clk 0:00:05]} 53. Kc7 {[%clk 0:00:12]}  Ka8 {[%clk 0:00:05]} 54. Qb7# {[%clk 0:00:12]} 1-0


[Site "https://www.chess.com"]

[Event "Titled Tuesday Blitz March 07 Late 2023"]
[White "Chan, Kim Yew"]
[Black "Shapiro, Viktor"]
[WhiteFideId "5717981"]
[BlackFideId "4175700"]
[WhiteElo "2206"]
[BlackElo "2152"]
[Result "0-1"]
[Round "09"]
[TimeControl "180+2"]
[Date "2023.03.07"]
[WhiteClock "0:00:02"]
[BlackClock "0:01:16"]

1. e4 {[%clk 0:03:00]}  Nf6 {[%clk 0:02:59]} 2. e5 {[%clk 0:02:58]}  Nd5 {[%clk 0:02:59]} 3. d4 {[%clk 0:02:59]}  d6 {[%clk 0:02:59]} 4. Nf3 {[%clk 0:02:59]}  Bg4 {[%clk 0:03:00]} 5. Be2 {[%clk 0:02:59]}  e6 {[%clk 0:03:00]} 6. O-O {[%clk 0:02:58]}  Be7 {[%clk 0:03:00]} 7. c4 {[%clk 0:02:57]}  Nb6 {[%clk 0:03:01]} 8. exd6 {[%clk 0:02:56]}  cxd6 {[%clk 0:03:01]} 9. h3 {[%clk 0:02:52]}  Bh5 {[%clk 0:03:01]} 10. Nc3 {[%clk 0:02:47]}  O-O {[%clk 0:03:00]} 11. Bf4 {[%clk 0:02:44]}  d5 {[%clk 0:02:58]} 12. c5 {[%clk 0:02:43]}  Bxf3 {[%clk 0:02:58]} 13. Bxf3 {[%clk 0:02:42]}  Nc8 {[%clk 0:02:59]} 14. b4 {[%clk 0:02:40]}  Nc6 {[%clk 0:02:59]} 15. b5 {[%clk 0:02:39]}  Na5 {[%clk 0:02:59]} 16. Re1 {[%clk 0:02:23]}  Bf6 {[%clk 0:02:59]} 17. Qd3 {[%clk 0:02:16]}  Ne7 {[%clk 0:02:55]} 18. Ne2 {[%clk 0:01:57]}  Nf5 {[%clk 0:02:48]} 19. Bg4 {[%clk 0:01:57]}  Nh4 {[%clk 0:02:45]} 20. Ng3 {[%clk 0:01:53]}  Ng6 {[%clk 0:02:44]} 21. Bd6 {[%clk 0:01:52]}  Re8 {[%clk 0:02:43]} 22. Rac1 {[%clk 0:01:46]}  Nc4 {[%clk 0:02:42]} 23. Rxc4 {[%clk 0:01:43]}  dxc4 {[%clk 0:02:43]} 24. Qxc4 {[%clk 0:01:44]}  Rc8 {[%clk 0:02:42]} 25. Qa4 {[%clk 0:01:41]}  b6 {[%clk 0:02:33]} 26. Ne4 {[%clk 0:01:39]}  Ra8 {[%clk 0:02:09]} 27. Bf3 {[%clk 0:01:35]}  Be7 {[%clk 0:02:08]} 28. Bxe7 {[%clk 0:01:17]}  Rxe7 {[%clk 0:02:07]} 29. cxb6 {[%clk 0:01:08]}  axb6 {[%clk 0:01:53]} 30. Nf6+ {[%clk 0:00:59]}  gxf6 {[%clk 0:01:52]} 31. Bxa8 {[%clk 0:01:00]}  Rd7 {[%clk 0:01:49]} 32. Rd1 {[%clk 0:00:50]}  Nf4 {[%clk 0:01:48]} 33. Bf3 {[%clk 0:00:49]}  e5 {[%clk 0:01:45]} 34. d5 {[%clk 0:00:26]}  f5 {[%clk 0:01:38]} 35. Qc4 {[%clk 0:00:06]}  Qf6 {[%clk 0:01:32]} 36. Qc8+ {[%clk 0:00:05]}  Rd8 {[%clk 0:01:32]} 37. Qc6 {[%clk 0:00:06]}  Rd6 {[%clk 0:01:32]} 38. Qc8+ {[%clk 0:00:05]}  Kg7 {[%clk 0:01:32]} 39. Qc1 {[%clk 0:00:05]}  Ng6 {[%clk 0:01:30]} 40. a4 {[%clk 0:00:04]}  e4 {[%clk 0:01:30]} 41. Bh5 {[%clk 0:00:04]}  Ne5 {[%clk 0:01:27]} 42. Qa1 {[%clk 0:00:02]}  Nc4 {[%clk 0:01:24]} 43. Be2 {[%clk 0:00:02]}  Qxa1 {[%clk 0:01:24]} 44. Rxa1 {[%clk 0:00:02]}  Na5 {[%clk 0:01:23]} 45. Rd1 {[%clk 0:00:02]}  Kf6 {[%clk 0:01:23]} 46. f3 {[%clk 0:00:02]}  Ke5 {[%clk 0:01:23]} 47. fxe4 {[%clk 0:00:02]}  fxe4 {[%clk 0:01:24]} 48. Rf1 {[%clk 0:00:01]}  f5 {[%clk 0:01:24]} 49. g4 {[%clk 0:00:01]}  f4 {[%clk 0:01:24]} 50. Rd1 {[%clk 0:00:01]}  f3 {[%clk 0:01:23]} 51. Bf1 {[%clk 0:00:01]}  Rxd5 {[%clk 0:01:23]} 52. Re1 {[%clk 0:00:01]}  Kf4 {[%clk 0:01:23]} 53. Kf2 {[%clk 0:00:01]}  Rd2+ {[%clk 0:01:23]} 54. Kg1 {[%clk 0:00:01]}  e3 {[%clk 0:01:23]} 55. Rc1 {[%clk 0:00:02]}  e2 {[%clk 0:01:16]} 0-1


[Site "https://www.chess.com"]